bitfinex-derivatives/quotes_ETHF0:USTF0_20240925
["timestamp","ask_amount","ask_price","bid_price","bid_amount"]
[1727288746058,0.38771,2579.4,2579.1,3.08774]
[1727288746257,0.3877,2579.4,2579.1,3.08774]
[1727288746554,0.3877,2579.4,2579.2,0.38773]
[1727288747554,0.3877,2579.4,2579.1,6.10774]
[1727288748252,0.3877,2579.4,2579.2,0.38773]
[1727288749056,0.38771,2579.4,2579.2,0.38772]
[1727288749260,3.98769,2579.5,2579.3,0.38771]
[1727288749456,3.6,2579.5,2579.2,0.38772]
[1727288749653,0.38771,2579.4,2579.2,0.38772]
[1727288750458,3.9877,2579.5,2579.3,0.38771]
[1727288752959,3.6,2579.5,2579.4,0.3877]
[1727288754551,0.7799,2579.5,2579.4,0.3877]
[1727288754751,0.3922,2579.5,2579.4,0.3877]
[1727288761664,0.77989,2579.5,2579.4,0.3877]
[1727288762464,0.3922,2579.5,2579.4,0.3877]
[1727288763570,0.77989,2579.5,2579.4,0.3877]
[1727288763863,0.3922,2579.5,2579.4,0.3877]
[1727288764665,0.77989,2579.5,2579.4,0.3877]
[1727288764859,0.3922,2579.5,2579.4,0.3877]
[1727288766470,0.77989,2579.5,2579.4,0.3877]
[1727288766668,0.3785,2579.6,2579.5,0.38769]
[1727288767163,3.59546,2579.7,2579.6,0.38767]
[1727288767562,0.796,2579.8,2579.7,0.38766]
[1727288769275,2.53681459,2580.0,2579.9,0.38763]
[1727288769571,2.53681459,2580.0,2579.6,0.96919]
[1727288769766,2.92443459,2580.0,2579.9,0.38762]
[1727288770168,0.38764,2579.9,2579.8,0.38763]
[1727288771064,0.38763,2579.9,2579.8,0.38763]
[1727288773875,3.2078,2580.1,2580.0,0.38761]
[1727288774172,3.50576459,2580.3,2580.2,0.38758]
[1727288774173,2.53681459,2580.3,2580.2,0.38758]
[1727288774475,0.38758,2580.2,2580.1,1.2067]
[1727288775373,0.38758,2580.2,2580.1,1.59429]
[1727288776068,0.38758,2580.3,2580.2,0.38758]
[1727288776260,0.3921,2580.4,2580.3,0.38757]
[1727288776465,4.58199,2580.7,2580.4,0.38755]
[1727288776766,3.2078,2580.7,2580.6,3.40752]
[1727288776976,3.31863459,2581.3,2580.6,7.19661]
[1727288777173,0.78182,2581.3,2581.1,3.02]
[1727288777469,0.38743,2581.2,2580.9,3.40747]
[1727288777767,0.38743,2581.2,2581.0,0.38746]
[1727288778161,0.3944,2581.3,2581.1,3.40744]
[1727288778369,0.4054,2581.4,2581.1,3.02]
[1727288778672,0.38742,2581.3,2581.1,3.40744]
[1727288779269,0.38742,2581.3,2581.1,3.02]
[1727288779571,3.6132,2581.4,2581.1,3.40744]
[1727288779869,0.38742,2581.3,2581.1,3.02]
[1727288780064,0.38743,2581.2,2581.1,3.02]
[1727288780381,6.6332,2581.4,2580.7,4.1865]
[1727288780576,3.2078,2581.1,2580.7,0.7826]
[1727288780875,0.38749,2580.8,2580.5,3.40753]
[1727288781066,0.38751,2580.7,2580.5,3.40753]
[1727288781373,3.2078,2580.8,2580.4,1.93625]
[1727288781572,3.2078,2580.8,2580.5,0.38754]
[1727288781767,3.5953,2580.8,2580.5,0.38754]
[1727288781967,0.38751,2580.7,2580.4,1.5487]
[1727288782367,0.38751,2580.7,2580.5,0.38753]
[1727288782564,0.38751,2580.7,2580.4,1.93624]
[1727288782764,0.38754,2580.5,2580.3,0.3732]
[1727288783066,0.38754,2580.5,2580.3,0.76076]
[1727288783269,0.38754,2580.5,2580.3,0.3732]
[1727288783863,0.38755,2580.4,2580.1,0.38759]
[1727288784069,0.38755,2580.4,2580.1,0.75809]
[1727288784271,0.38754,2580.5,2580.2,0.38758]
[1727288785076,0.3787,2580.6,2580.1,0.3705]
[1727288785271,0.76056,2580.4,2580.1,0.75809]
[1727288785466,0.38757,2580.3,2580.1,0.3705]
[1727288786578,0.38758,2580.3,2580.1,0.3705]
[1727288786870,0.373,2580.4,2580.1,0.3705]
[1727288786871,0.38758,2580.2,2580.1,0.3705]
[1727288787564,0.38758,2580.3,2580.1,0.3705]
[1727288787766,0.38757,2580.3,2580.1,0.7581]
[1727288787966,0.76056,2580.4,2580.2,3.02]
[1727288788176,0.38756,2580.4,2580.2,3.40757]
[1727288788369,0.38756,2580.4,2580.2,3.02]
[1727288788684,0.38756,2580.4,2580.2,3.40758]
[1727288789962,3.2078,2580.5,2580.4,0.38755]
[1727288790161,0.3721,2580.9,2580.4,3.02]
[1727288790366,0.45193858,2580.8,2580.6,0.38752]
[1727288790673,1.16658,2580.9,2580.7,3.02]
[1727288790873,0.06443455,2580.8,2580.7,4.37627]
[1727288791081,3.5952,2581.5,2580.8,0.96874]
[1727288791271,0.3874,2581.5,2581.4,3.02]
[1727288791571,0.38742,2581.3,2581.2,3.02]
[1727288793978,0.38743,2581.2,2581.1,3.40744]
[1727288794178,4.0077,2581.7,2581.1,3.40744]
[1727288794179,0.96847,2581.5,2581.1,3.40744]
[1727288794374,4.0077,2581.7,2581.1,3.02]
[1727288794577,0.38742,2581.3,2581.1,3.40744]
[1727288794873,0.38745,2581.1,2581.0,2.7]
[1727288795077,0.3747,2581.2,2580.8,0.38748]
[1727288795278,0.38747,2581.0,2580.9,0.38747]
[1727288795875,0.38746,2581.1,2580.9,0.38747]
[1727288796277,0.38746,2581.0,2580.8,0.38748]
[1727288796481,0.38746,2581.0,2580.9,0.38747]
[1727288796786,0.38745,2581.1,2580.8,3.02]
[1727288796973,0.38745,2581.1,2581.0,0.38746]
[1727288797173,0.38745,2581.1,2580.9,0.38747]
[1727288797582,0.38745,2581.1,2581.0,0.38746]
[1727288797775,0.38745,2581.1,2580.9,0.38747]
[1727288798086,0.38745,2581.1,2581.0,0.38746]
[1727288800284,0.38745,2581.1,2580.8,3.02]
[1727288800285,0.76214,2581.2,2580.8,3.02]
[1727288800583,0.96853,2581.4,2581.1,3.40743]
[1727288800773,4.17633,2581.4,2581.1,3.40743]
[1727288800973,0.96853,2581.4,2581.1,3.40743]
[1727288801389,0.38743,2581.2,2581.1,3.40743]
[1727288801682,0.38743,2581.3,2581.1,3.02]
[1727288801881,3.59522,2581.4,2581.2,0.78742]
[1727288802082,0.38742,2581.4,2581.3,3.02]
[1727288802977,0.38742,2581.4,2581.3,3.40742]
[1727288803181,0.38739,2581.5,2581.3,3.77711]
[1727288803387,0.3874,2581.4,2581.3,3.77711]
[1727288805879,0.3874,2581.4,2581.3,3.3897]
[1727288806184,0.38744,2581.2,2580.8,3.02]
[1727288806389,0.38744,2581.2,2580.8,3.8025]
[1727288806587,2.53681459,2581.3,2581.0,0.38746]
[1727288806790,0.38745,2581.1,2581.0,0.38746]
[1727288806992,0.38744,2581.2,2581.1,0.38745]
[1727288807581,0.96855,2581.3,2580.8,3.8025]
[1727288807784,0.38744,2581.2,2581.1,0.38744]
[1727288808283,0.38742,2581.3,2581.2,0.38743]
[1727288808791,0.38741,2581.4,2581.0,3.02]
[1727288808988,0.38741,2581.4,2581.3,0.38742]
[1727288809187,0.38742,2581.3,2581.2,3.40742]
[1727288809884,0.38743,2581.2,2581.1,0.38744]
[1727288810679,0.3743,2581.6,2581.0,6.2278]
[1727288810882,0.38741,2581.4,2581.3,3.59521]
[1727288811291,0.38741,2581.4,2581.3,3.40741]
[1727288812782,0.38739,2581.5,2581.4,0.38739]
[1727288812987,0.3743,2581.6,2581.5,0.38739]
[1727288812988,0.38739,2581.6,2581.5,0.38739]
[1727288813787,0.45130785,2581.6,2581.5,0.38739]
[1727288814095,4.00217,2581.7,2581.6,0.38737]
[1727288814294,4.06608801,2581.7,2581.6,0.38737]
[1727288814486,0.38737,2581.6,2581.5,0.38737]
[1727288814686,0.45128795,2581.6,2581.5,0.38737]
[1727288815099,0.45128795,2581.6,2581.4,0.7843]
[1727288815100,0.38739,2581.5,2581.4,0.7843]
[1727288815291,0.06391795,2581.5,2581.4,0.3874]
[1727288815889,0.45130795,2581.5,2581.4,0.3874]
[1727288816094,0.3874,2581.4,2581.3,0.38741]
[1727288816397,0.7727,2581.4,2581.3,0.38741]
[1727288816801,0.7727,2581.4,2581.1,3.4169]
[1727288816802,0.3853,2581.4,2581.1,3.4169]
[1727288816994,0.3853,2581.4,2581.2,0.38742]
[1727288816995,0.38742,2581.3,2581.2,0.38742]
[1727288817298,0.3853,2581.4,2581.1,0.78434]
[1727288817299,0.38743,2581.2,2581.1,0.78434]
[1727288817503,0.38743,2581.2,2581.1,0.38744]
[1727288817690,0.38746,2581.1,2581.0,0.38745]
[1727288818485,0.38746,2581.0,2580.9,3.2078]
[1727288818799,0.78086,2581.0,2580.9,3.2078]
[1727288819101,0.3934,2581.0,2580.8,0.4041]
[1727288819289,0.38748,2580.9,2580.8,0.38748]
[1727288819490,0.38748,2580.9,2580.8,0.38749]
[1727288820898,0.78087,2581.0,2580.9,0.38748]
[1727288821098,3.2078,2581.1,2581.0,0.38746]
[1727288821300,0.96849,2581.5,2581.1,0.38743]
[1727288821495,0.38743,2581.3,2581.2,0.38743]
[1727288822098,3.39317869,2581.5,2581.4,0.3874]
[1727288822311,3.76688869,2581.6,2581.5,0.38739]
[1727288822497,3.00578869,2581.6,2581.5,0.38739]
[1727288822901,3.39316869,2581.6,2581.4,3.40739]
[1727288823097,3.39316869,2581.6,2581.5,0.38739]
[1727288823404,3.39316869,2581.6,2581.4,3.02]
[1727288823405,3.39316869,2581.6,2581.4,3.40739]
[1727288823586,3.39316869,2581.6,2581.5,0.38739]
[1727288825588,3.39316869,2581.6,2581.4,3.40739]
[1727288825805,3.39316869,2581.6,2581.5,0.38739]
[1727288827106,3.39316869,2581.6,2581.4,3.40739]
[1727288827907,0.38739,2581.5,2581.4,3.40739]
[1727288828101,3.39316869,2581.6,2581.5,0.38739]
[1727288829611,0.38738,2581.6,2581.5,0.38739]
[1727288829901,0.38739,2581.5,2581.4,3.4074]
[1727288830107,0.38738,2581.6,2581.5,0.38738]
[1727288830609,0.38739,2581.5,2581.4,3.40739]
[1727288831896,0.3874,2581.4,2581.3,0.3833]
[1727288832102,9.21802,2581.4,2581.3,0.3833]
[1727288832311,15.28195493,2581.4,2581.3,0.3833]
[1727288832510,18.28774222,2581.4,2581.3,0.06275894]
[1727288832804,18.28774222,2581.4,2581.0,0.3813]
[1727288832805,0.38745,2581.1,2581.0,0.38745]
[1727288833002,7.84790869,2581.4,2581.1,0.38745]
[1727288833003,0.96852,2581.4,2581.1,0.38745]
[1727288833206,6.21358869,2581.5,2580.9,3.02]
[1727288833405,6.21358869,2581.5,2581.1,0.38744]
[1727288833406,7.18207869,2581.5,2581.1,0.38744]
[1727288833611,6.21358869,2581.5,2581.2,3.02]
[1727288833912,0.38742,2581.3,2581.2,3.40743]
[1727288834203,0.3874,2581.4,2581.2,3.40742]
[1727288834411,3.2078,2581.5,2581.2,3.40742]
[1727288835201,0.38742,2581.4,2581.2,3.40742]
[1727288835511,3.2078,2581.5,2581.2,3.40742]
[1727288835512,6.21358869,2581.5,2581.2,3.40742]
[1727288835711,0.38742,2581.3,2581.2,3.02]
[1727288836108,0.38742,2581.4,2581.3,0.38742]
[1727288836309,0.3874,2581.4,2581.2,3.40742]
[1727288836505,0.38742,2581.3,2581.2,3.40742]
[1727288836812,0.38742,2581.3,2581.2,3.02]
[1727288837014,0.38742,2581.3,2580.9,3.02]
[1727288837015,0.38746,2581.1,2580.9,3.02]
[1727288837209,0.38746,2581.1,2580.9,3.40746]
[1727288837405,0.38744,2581.2,2581.0,0.38745]
[1727288838318,0.38745,2581.1,2581.0,0.38745]
[1727288841108,0.38742,2581.3,2581.2,0.38742]
[1727288841317,0.38741,2581.4,2581.3,0.3874]
[1727288843117,3.2078,2581.5,2581.4,0.3874]
[1727288843810,7.17970379,2581.5,2581.4,0.3874]
[1727288844116,3.2717212,2581.5,2581.4,0.3874]
[1727288844306,7.15116605,2581.5,2581.4,0.3874]
[1727288844507,3.65911008,2581.5,2581.4,0.3874]
[1727288844711,3.27172008,2581.5,2581.4,0.3874]
[1727288844914,3.2078,2581.5,2581.4,0.3874]
[1727288845114,3.59519,2581.5,2581.4,0.3874]
[1727288845916,3.65911056,2581.5,2581.4,0.3874]
[1727288846123,3.65911056,2581.5,2581.3,0.38741]
[1727288846124,0.38741,2581.4,2581.3,0.38741]
[1727288846419,3.94385039,2581.4,2581.3,0.38741]
[1727288846618,3.94385039,2581.4,2581.2,3.02]
[1727288846619,0.38743,2581.3,2581.2,0.38743]
[1727288846812,3.94386039,2581.3,2581.2,0.38743]
[1727288847009,0.38742,2581.3,2581.2,0.38743]
[1727288847510,3.94386039,2581.3,2581.2,0.38743]
[1727288848112,0.38742,2581.3,2581.2,0.38743]
[1727288848313,3.94386039,2581.3,2581.2,0.38743]
[1727288849717,0.38744,2581.2,2581.1,0.38744]
[1727288849918,3.43631787,2581.2,2581.1,0.38744]
[1727288850514,3.04887787,2581.2,2581.1,0.38744]
[1727288851318,3.04887787,2581.2,2581.1,1.35606]
[1727288851714,3.59519,2581.5,2581.4,0.3874]
[1727288851916,3.65911022,2581.5,2581.4,0.3874]
[1727288852125,3.59519,2581.5,2581.4,0.3874]
[1727288855723,3.2078,2581.5,2581.1,3.2078]
[1727288855930,0.38745,2581.2,2581.1,0.38744]
[1727288858830,3.94389039,2581.2,2581.1,0.38744]
[1727288860320,3.94389039,2581.2,2580.6,3.02]
[1727288860321,0.38749,2580.9,2580.6,3.02]
[1727288860538,0.96874,2580.8,2580.4,0.38755]
[1727288860726,3.55763321,2580.7,2580.4,3.02]
[1727288860920,3.55763321,2580.7,2580.2,4.17676]
[1727288860921,3.04979306,2580.6,2580.5,3.40754]
[1727288861333,3.04979306,2580.7,2580.6,0.38752]
[1727288861525,0.38751,2580.7,2580.6,0.38752]
[1727288861826,3.94513321,2580.8,2580.5,3.02]
[1727288862035,3.04874868,2580.6,2580.5,3.40754]
[1727288862327,3.04874868,2580.6,2580.4,0.38754]
[1727288862328,0.38752,2580.6,2580.4,0.38754]
[1727288862528,3.43626868,2580.6,2580.4,0.38754]
[1727288862737,3.04874868,2580.6,2580.4,0.38754]
[1727288863032,3.43627868,2580.6,2580.4,0.38754]
[1727288863425,3.43627868,2580.6,2580.5,0.38754]
[1727288864124,3.43627868,2580.6,2580.4,0.38754]
[1727288864319,3.04874868,2580.7,2580.4,0.38755]
[1727288864622,0.38753,2580.6,2580.5,0.38753]
[1727288867134,0.38753,2580.6,2580.5,0.38754]
[1727288867527,4.17648,2581.0,2580.7,0.38751]
[1727288867727,0.96868,2581.0,2580.7,0.38751]
[1727288868020,0.38743,2581.2,2581.0,0.38745]
[1727288868223,0.38745,2581.1,2581.0,0.38745]
[1727288870122,0.38746,2581.0,2580.9,2.7]
[1727288870532,0.38748,2580.9,2580.8,0.38749]
[1727288870922,0.38747,2581.0,2580.9,0.38747]
[1727288872429,3.59526,2581.1,2581.0,0.38746]
[1727288872835,3.2078,2581.1,2581.0,0.38746]
[1727288873335,3.2078,2581.4,2580.9,3.02]
[1727288873542,0.38743,2581.3,2581.2,0.38743]
[1727288874840,0.38743,2581.2,2581.1,3.40744]
[1727288875046,1.20003,2581.2,2581.1,3.40744]
[1727288875931,1.20003,2581.2,2581.1,3.02]
[1727288876127,1.20003,2581.2,2581.1,3.40745]
[1727288878554,0.8126,2581.2,2581.1,3.40745]
[1727288879460,1.20003,2581.2,2581.1,3.40745]
[1727288880359,0.8126,2581.2,2581.1,3.40745]
[1727288881366,1.20003,2581.2,2581.1,3.40745]
[1727288881660,0.38745,2581.1,2581.0,0.38745]
[1727288881856,3.43619868,2581.1,2581.0,0.38745]
[1727288882359,0.38745,2581.1,2581.0,0.38745]
[1727288882761,1.20004,2581.2,2581.1,0.38745]
[1727288883458,0.8126,2581.2,2581.1,0.38745]
[1727288884253,3.04440115,2581.2,2581.1,12.42689]
[1727288884464,3.04440115,2581.4,2581.2,0.96859]
[1727288884655,3.85180115,2581.5,2581.4,0.3874]
[1727288885358,4.23919115,2581.5,2581.4,0.3874]
[1727288885552,1.19479,2581.5,2581.4,0.3874]
[1727288886060,3.8513229,2581.5,2581.4,0.3874]
[1727288887960,4.2387129,2581.5,2581.4,0.3874]
[1727288888162,3.8513229,2581.5,2581.4,0.3874]
[1727288888661,4.2387129,2581.5,2581.4,0.3874]
[1727288888854,1.19479,2581.5,2581.4,0.3874]
[1727288891462,3.59517,2581.7,2581.6,0.38737]
[1727288891654,4.39857,2581.7,2581.6,0.38737]
[1727288892162,0.38739,2581.6,2581.5,0.38738]
[1727288893858,0.38739,2581.5,2581.4,0.38739]
[1727288894250,4.9796,2581.7,2581.3,3.02]
[1727288894451,0.38738,2581.6,2581.5,0.38738]
[1727288898261,3.42965981,2581.6,2581.5,0.38738]
[1727288899263,3.42964981,2581.6,2581.5,0.38738]
[1727288901468,0.3874,2581.5,2581.4,0.3874]
[1727288902263,0.38742,2581.3,2581.2,0.38742]
[1727288902469,0.38743,2581.3,2581.2,0.38742]
[1727288902863,0.80083,2581.3,2581.2,0.38742]
[1727288903067,0.4134,2581.3,2581.2,0.38742]
[1727288903259,0.80082,2581.3,2581.2,0.38742]
[1727288906266,0.80082,2581.3,2581.2,1.78742]
[1727288906968,0.4134,2581.3,2581.2,1.78742]
[1727288907168,3.6164,2581.7,2581.6,0.38737]
[1727288907370,0.38737,2581.6,2581.5,1.78737]
[1727288907574,0.4512873,2581.6,2581.5,1.78737]
[1727288907873,0.38737,2581.6,2581.5,1.78737]
[1727288908062,0.45128458,2581.6,2581.5,1.78737]
[1727288908263,0.0639147,2581.6,2581.4,0.3874]
[1727288908468,0.3874,2581.5,2581.4,0.3874]
[1727288908871,0.3874,2581.5,2581.4,1.7874]
[1727288911380,3.2078,2581.5,2581.1,0.3832]
[1727288911673,1.23123291,2581.4,2581.2,0.38743]
[1727288911871,3.42969981,2581.3,2581.2,1.78743]
[1727288912071,0.38742,2581.3,2581.2,1.4]
[1727288912973,3.94505321,2581.3,2581.2,1.4]
[1727288913176,0.38742,2581.3,2581.2,1.4]
[1727288913361,3.55763321,2581.3,2581.2,1.78743]
[1727288913560,3.94505321,2581.3,2581.2,1.78743]
[1727288914974,3.94505321,2581.3,2581.2,1.4]
[1727288915175,3.94505321,2581.3,2581.2,1.78743]
[1727288916770,3.94505321,2581.3,2581.2,1.4]
[1727288916975,3.94505321,2581.3,2581.2,1.78743]
[1727288917180,3.55763321,2581.3,2581.2,1.78743]
[1727288917477,4.72493321,2581.4,2581.3,0.38742]
[1727288917670,1.1673,2581.4,2581.3,0.38742]
[1727288918069,4.72192066,2581.4,2581.3,0.38742]
[1727288918268,1.1673,2581.4,2581.3,0.38742]
[1727288922281,0.3964,2581.4,2581.3,0.38742]
[1727288922667,0.38739,2581.5,2581.4,0.3874]
[1727288922870,0.38739,2581.5,2581.4,1.7874]
[1727288924377,0.38739,2581.5,2581.4,1.4]
[1727288924874,0.38739,2581.5,2581.4,1.7874]
[1727288925383,0.78089,2581.6,2581.5,0.38739]
[1727288926481,0.38739,2581.5,2581.4,1.78739]
[1727288927676,3.82818103,2581.6,2581.5,0.38739]
[1727288928075,3.82818103,2581.6,2581.5,0.78019]
[1727288928477,3.44079103,2581.6,2581.5,0.519995]
[1727288928676,3.04729103,2581.7,2581.6,0.38737]
[1727288928879,3.55517286,2581.9,2581.8,0.38734]
[1727288928880,0.3805,2581.9,2581.8,0.38734]
[1727288929079,0.3805,2581.9,2581.8,1.78734]
[1727288929272,0.3805,2581.9,2581.8,1.4]
[1727288929273,0.76783,2581.9,2581.8,1.4]
[1727288929675,0.38734,2581.8,2581.7,1.78735]
[1727288930278,0.38734,2581.8,2581.7,1.4]
[1727288931184,0.38734,2581.8,2581.6,1.78736]
[1727288931384,0.38736,2581.7,2581.6,1.78736]
[1727288931577,0.38736,2581.7,2581.3,4.22100231]
[1727288931578,0.3874,2581.4,2581.3,3.59521]
[1727288931779,0.3874,2581.4,2581.2,0.3728]
[1727288931983,0.3854,2581.3,2581.2,0.76023]
[1727288932687,0.77282,2581.3,2581.2,0.76023]
[1727288932991,0.3854,2581.3,2581.2,0.76023]
[1727288934287,0.3854,2581.3,2581.2,2.16023]
[1727288936792,4.35730379,2581.3,2581.2,2.16023]
[1727288937590,0.3854,2581.3,2581.2,2.16023]
[1727288938883,3.97190379,2581.4,2581.3,0.38742]
[1727288939088,4.03582678,2581.4,2581.3,0.38742]
[1727288939875,4.42322678,2581.4,2581.3,0.38742]
[1727288940586,4.03582678,2581.4,2581.3,0.38742]
[1727288940788,4.42322678,2581.4,2581.3,0.38742]
[1727288940983,4.42322678,2581.4,2581.2,1.7728]
[1727288940984,0.38742,2581.3,2581.2,2.16022]
[1727288941183,0.45134468,2581.3,2581.2,0.38742]
[1727288941393,0.38746,2581.0,2580.9,3.59527]
[1727288941586,0.38748,2581.0,2580.9,0.38748]
[1727288941785,3.94514785,2581.0,2580.9,1.78748]
[1727288941985,0.77648,2581.0,2580.9,1.78748]
[1727288945086,0.77648,2581.0,2580.9,1.4]
[1727288945793,1.74514,2581.0,2580.9,1.4]
[1727288946499,0.38748,2580.9,2580.8,0.38748]
[1727288946691,0.38751,2580.7,2580.6,0.38751]
[1727288947388,0.38757,2580.4,2580.3,0.38756]
[1727288947594,0.96881,2580.6,2580.2,0.38757]
[1727288947595,0.38758,2580.3,2580.2,0.38757]
[1727288947792,0.78828,2580.3,2580.2,0.38757]
[1727288948301,0.38758,2580.2,2580.1,2.16389]
[1727288948499,0.77368,2580.2,2580.1,2.16389]
[1727288948994,0.77368,2580.2,2579.9,3.6091]
[1727288948995,0.77369,2580.2,2579.9,1.4]
[1727288949205,0.3876,2580.1,2579.9,1.4]
[1727288949407,0.3876,2580.1,2580.0,1.4]
[1727288949989,1.17889,2580.2,2580.1,0.3876]
[1727288950594,0.3861,2580.2,2580.1,1.7876]
[1727288950988,0.78827,2580.3,2580.2,0.38758]
[1727288951501,0.78827,2580.3,2580.2,0.77778]
[1727288951706,0.379,2580.5,2580.4,0.38755]
[1727288952000,0.379,2580.5,2580.4,1.78755]
[1727288952301,0.379,2580.5,2580.4,0.38755]
[1727288954407,0.38755,2580.4,2580.3,3.78025]
[1727288954704,0.379,2580.5,2580.4,0.38755]
[1727288954899,0.76654,2580.5,2580.4,0.38755]
[1727288955400,0.379,2580.5,2580.4,0.38755]
[1727288956004,0.76654,2580.5,2580.4,0.38755]
[1727288957407,1.18233,2580.6,2580.5,0.38754]
[1727288957797,0.38754,2580.5,2580.4,0.38754]
[1727288960205,0.7948,2580.6,2580.5,0.38754]
[1727288960406,0.398,2580.6,2580.5,3.40754]
[1727288960597,0.38751,2580.7,2580.6,0.38751]
[1727288960796,0.38751,2580.7,2580.6,0.79411]
[1727288962193,0.4031,2580.8,2580.6,0.4066]
[1727288962390,0.7906,2580.8,2580.7,0.38751]
[1727288962991,0.4031,2580.8,2580.7,0.38751]
[1727288963194,0.4031,2580.8,2580.7,0.76871]
[1727288963394,0.79059,2580.8,2580.7,0.76871]
[1727288964301,0.4031,2580.8,2580.7,3.78871]
[1727288964601,0.375,2580.9,2580.7,3.78871]
[1727288964602,0.76248,2580.9,2580.8,0.38749]
[1727288964807,0.375,2580.9,2580.8,0.38749]
[1727288965890,0.76248,2580.9,2580.8,0.38749]
[1727288968114,0.82641577,2580.9,2580.8,0.38749]
[1727288968299,0.76248,2580.9,2580.8,0.38749]
[1727288969806,0.375,2580.9,2580.8,0.38749]
[1727288970008,0.3712,2581.0,2580.9,0.38748]
[1727288970507,0.43513077,2581.0,2580.9,0.38748]
[1727288971109,0.4990608,2581.0,2580.9,0.38748]
[1727288971700,0.43513036,2581.0,2580.9,0.38748]
[1727288971999,0.49906022,2581.0,2580.9,0.38748]
[1727288972307,0.49906033,2581.0,2580.9,0.38748]
[1727288972503,0.43513036,2581.0,2580.9,1.78748]
[1727288973797,0.82259036,2581.0,2580.9,0.38748]
[1727288974805,0.82259036,2581.0,2580.7,0.3875]
[1727288974806,0.38751,2580.8,2580.7,0.3875]
[1727288975206,0.76421,2580.8,2580.7,0.3875]
[1727288979511,0.38751,2580.7,2580.6,0.79411]
[1727288979704,0.76531,2580.7,2580.6,0.79411]
[1727288979902,0.3778,2580.7,2580.6,0.79411]
[1727288981811,0.7642,2580.8,2580.7,0.38751]
[1727288982014,0.7642,2580.8,2580.7,1.78751]
[1727288984711,0.3981,2580.9,2580.8,0.38749]
[1727288984911,1.20064,2581.2,2581.1,0.38745]
[1727288985612,1.20064,2581.2,2581.1,1.78745]
[1727288985613,0.4085,2581.2,2581.1,1.78745]
[1727288986025,0.4048,2581.3,2581.2,0.38743]
[1727288986313,3.96248511,2581.3,2581.2,0.38743]
[1727288986509,3.96248511,2581.3,2581.2,3.08743]
[1727288987207,3.96248511,2581.3,2581.2,0.38743]
[1727288987698,4.34990511,2581.3,2581.2,0.38743]
[1727288988510,3.96248511,2581.3,2581.2,0.38743]
[1727288988718,0.4048,2581.3,2581.2,0.79353]
[1727288988919,6.76548511,2581.4,2581.3,0.38742]
[1727288989111,7.15288511,2581.4,2581.3,2.17782]
[1727288990314,7.15288511,2581.4,2581.3,0.77782]
[1727288991305,7.15288511,2581.4,2581.3,0.3904]
[1727288991502,0.38742,2581.3,2581.2,2.19352]
[1727288991704,3.43087604,2581.3,2581.2,2.19352]
[1727288993304,3.04345604,2581.3,2581.2,2.19352]
[1727288994231,3.59521,2581.4,2581.3,0.38742]
[1727288994232,3.04345604,2581.4,2581.3,0.38742]
[1727288994515,1.20219,2581.5,2581.4,0.3874]
[1727288994706,1.20219,2581.5,2581.4,0.792]
[1727288995522,1.26610655,2581.5,2581.4,0.792]
[1727288995713,1.20219,2581.5,2581.4,0.792]
[1727288995912,1.26610963,2581.5,2581.4,0.792]
[1727288999216,1.20219,2581.5,2581.4,0.792]
[1727288999417,1.26610953,2581.5,2581.4,0.792]
[1727289001023,1.26611008,2581.5,2581.4,0.792]
[1727289001417,4.82379519,2581.5,2581.4,0.792]
[1727289002216,4.82379516,2581.5,2581.4,0.792]
[1727289002418,4.82379516,2581.5,2581.4,0.4046]
[1727289002717,4.82379516,2581.5,2581.1,3.2078]
[1727289002718,0.96855,2581.3,2581.1,3.2078]
[1727289002919,3.43513786,2581.2,2581.1,3.2078]
[1727289003127,3.82258786,2581.2,2581.1,0.38745]
[1727289003528,3.82258786,2581.2,2581.1,1.78745]
[1727289003722,3.43513786,2581.2,2581.1,1.78745]
[1727289004121,3.82256786,2581.2,2581.1,1.78745]
[1727289005717,3.04313786,2581.2,2581.1,6.63047]
[1727289005927,3.04313786,2581.3,2581.2,1.35602]
[1727289006115,3.04313786,2581.3,2581.2,2.75602]
[1727289006324,3.04313786,2581.3,2581.2,3.16262]
[1727289007519,3.04313786,2581.3,2581.2,2.19403]
[1727289008417,3.04313786,2581.3,2581.2,3.16262]
[1727289008618,3.04313786,2581.4,2581.3,1.35597]
[1727289008925,3.04313786,2581.4,2581.3,3.53897]
[1727289009133,3.04313786,2581.5,2581.4,1.35591]
[1727289009323,3.04313786,2581.6,2581.5,0.38739]
[1727289009518,0.38736,2581.7,2581.5,1.787]
[1727289009726,0.38736,2581.7,2581.6,0.38736]
[1727289009924,0.3857,2581.7,2581.6,0.38736]
[1727289012431,1.18475,2581.8,2581.7,0.38736]
[1727289012624,0.7974,2581.8,2581.7,1.78736]
[1727289012826,1.18474,2581.8,2581.7,1.78736]
[1727289013430,1.18474,2581.8,2581.7,1.4]
[1727289014530,1.18474,2581.8,2581.7,1.78736]
[1727289015617,0.7974,2581.8,2581.7,1.78736]
[1727289015822,1.18474,2581.8,2581.7,1.78736]
[1727289017425,0.78064,2581.8,2581.7,1.78736]
[1727289018725,0.78064,2581.8,2581.7,1.4]
[1727289018926,0.78064,2581.8,2581.7,1.78736]
[1727289022924,0.78064,2581.8,2581.7,1.4]
[1727289023522,0.78064,2581.8,2581.7,1.78736]
[1727289024736,3.04084015,2581.9,2581.8,0.38734]
[1727289024931,3.9516275,2582.0,2581.8,0.38734]
[1727289024932,3.84164015,2582.0,2581.9,0.38733]
[1727289025230,0.8008,2582.0,2581.9,0.38733]